[Event "Titled Tuesday Blitz February 28 Early 2023"]
[White "Molina, Roberto Junio Brito"]
[Black "Tabatabaei, M. Amin"]
[WhiteFideId "2109450"]
[BlackFideId "12521213"]
[WhiteElo "2376"]
[BlackElo "2565"]
[Result "0-1"]
[Round "06"]
[TimeControl "180+2"]
[Date "2023.02.28"]
[WhiteClock "0:00:46"]
[BlackClock "0:00:49"]

1. d4 {[%clk 0:03:00]}  e6 {[%clk 0:02:58]} 2. c4 {[%clk 0:02:59]}  b6 {[%clk 0:02:57]} 3. Nf3 {[%clk 0:02:58]}  Bb7 {[%clk 0:02:58]} 4. g3 {[%clk 0:02:58]}  Bb4+ {[%clk 0:02:58]} 5. Bd2 {[%clk 0:02:57]}  Bxf3 {[%clk 0:02:59]} 6. exf3 {[%clk 0:02:57]}  Bxd2+ {[%clk 0:03:00]} 7. Qxd2 {[%clk 0:02:58]}  Nf6 {[%clk 0:03:00]} 8. Bg2 {[%clk 0:02:58]}  d5 {[%clk 0:03:01]} 9. cxd5 {[%clk 0:02:58]}  Nxd5 {[%clk 0:02:59]} 10. f4 {[%clk 0:02:57]}  Nc6 {[%clk 0:02:57]} 11. O-O {[%clk 0:02:56]}  Nce7 {[%clk 0:02:55]} 12. Nc3 {[%clk 0:02:55]}  O-O {[%clk 0:02:55]} 13. Rac1 {[%clk 0:02:54]}  c6 {[%clk 0:02:54]} 14. Rfd1 {[%clk 0:02:49]}  Qd7 {[%clk 0:02:54]} 15. h4 {[%clk 0:02:49]}  Rfd8 {[%clk 0:02:54]} 16. a3 {[%clk 0:02:49]}  Rac8 {[%clk 0:02:53]} 17. Qe2 {[%clk 0:02:48]}  Nf5 {[%clk 0:02:52]} 18. Be4 {[%clk 0:02:40]}  Nde7 {[%clk 0:02:50]} 19. Qd3 {[%clk 0:02:27]}  Nxd4 {[%clk 0:02:08]} 20. Bxh7+ {[%clk 0:02:25]}  Kf8 {[%clk 0:02:05]} 21. Be4 {[%clk 0:02:26]}  c5 {[%clk 0:02:04]} 22. Ne2 {[%clk 0:02:14]}  Qa4 {[%clk 0:02:00]} 23. Nc3 {[%clk 0:02:09]}  Qb3 {[%clk 0:01:56]} 24. Rd2 {[%clk 0:02:07]}  Nf3+ {[%clk 0:01:52]} 25. Bxf3 {[%clk 0:02:03]}  Rxd3 {[%clk 0:01:50]} 26. Rxd3 {[%clk 0:02:04]}  Qxb2 {[%clk 0:01:31]} 27. Ne2 {[%clk 0:02:04]}  Nf5 {[%clk 0:01:26]} 28. Kg2 {[%clk 0:01:55]}  Ke7 {[%clk 0:01:26]} 29. Rcd1 {[%clk 0:01:53]}  Rc7 {[%clk 0:01:19]} 30. R1d2 {[%clk 0:01:46]}  Qf6 {[%clk 0:01:03]} 31. Be4 {[%clk 0:01:41]}  c4 {[%clk 0:01:02]} 32. Rc3 {[%clk 0:01:33]}  Nd6 {[%clk 0:01:02]} 33. Bf3 {[%clk 0:01:29]}  Nb5 {[%clk 0:01:02]} 34. Re3 {[%clk 0:01:29]}  c3 {[%clk 0:01:00]} 35. Ra2 {[%clk 0:01:28]}  c2 {[%clk 0:00:58]} 36. a4 {[%clk 0:01:27]}  Nd4 {[%clk 0:00:56]} 37. Nc1 {[%clk 0:01:23]}  Nxf3 {[%clk 0:00:56]} 38. Kxf3 {[%clk 0:01:23]}  Qd4 {[%clk 0:00:57]} 39. Rd3 {[%clk 0:01:20]}  Qb4 {[%clk 0:00:55]} 40. Ke2 {[%clk 0:01:18]}  Rc3 {[%clk 0:00:51]} 41. Rd2 {[%clk 0:00:46]}  Qe4+ {[%clk 0:00:49]} 42. Kf1 {[%clk 0:00:46]}  Qh1+ {[%clk 0:00:49]} 0-1


[Site "https://www.chess.com"]

[Event "Titled Tuesday Blitz February 28 Early 2023"]
[White "Svane, Rasmus"]
[Black "Harsh Suresh"]
[WhiteFideId "4657101"]
[BlackFideId "45018464"]
[WhiteElo "2597"]
[BlackElo "2227"]
[Result "1-0"]
[Round "06"]
[TimeControl "180+2"]
[Date "2023.02.28"]
[WhiteClock "0:00:23"]
[BlackClock "0:00:16"]

1. Nf3 {[%clk 0:03:00]}  Nf6 {[%clk 0:02:55]} 2. g3 {[%clk 0:03:01]}  b5 {[%clk 0:02:51]} 3. Bg2 {[%clk 0:03:00]}  Bb7 {[%clk 0:02:51]} 4. d4 {[%clk 0:03:01]}  e6 {[%clk 0:02:51]} 5. Bg5 {[%clk 0:03:01]}  Be7 {[%clk 0:02:51]} 6. Qd3 {[%clk 0:03:00]}  a6 {[%clk 0:02:48]} 7. c3 {[%clk 0:03:00]}  O-O {[%clk 0:02:47]} 8. Bxf6 {[%clk 0:02:59]}  Bxf6 {[%clk 0:02:46]} 9. Ng5 {[%clk 0:02:59]}  Bxg5 {[%clk 0:02:46]} 10. Bxb7 {[%clk 0:03:00]}  Ra7 {[%clk 0:02:47]} 11. Bg2 {[%clk 0:03:01]}  d6 {[%clk 0:02:45]} 12. a4 {[%clk 0:02:58]}  c6 {[%clk 0:02:28]} 13. O-O {[%clk 0:02:55]}  Qb6 {[%clk 0:02:23]} 14. Nd2 {[%clk 0:02:34]}  Bxd2 {[%clk 0:02:20]} 15. Qxd2 {[%clk 0:02:34]}  Nd7 {[%clk 0:02:12]} 16. b4 {[%clk 0:02:25]}  d5 {[%clk 0:01:57]} 17. Rfb1 {[%clk 0:02:23]}  a5 {[%clk 0:01:30]} 18. axb5 {[%clk 0:02:22]}  cxb5 {[%clk 0:01:30]} 19. bxa5 {[%clk 0:02:12]}  Rxa5 {[%clk 0:01:31]} 20. Rxa5 {[%clk 0:02:11]}  Qxa5 {[%clk 0:01:32]} 21. Qb2 {[%clk 0:02:12]}  Rb8 {[%clk 0:01:29]} 22. e4 {[%clk 0:02:10]}  dxe4 {[%clk 0:01:18]} 23. Bxe4 {[%clk 0:02:11]}  Nf6 {[%clk 0:01:18]} 24. Bd3 {[%clk 0:02:09]}  Nd5 {[%clk 0:01:18]} 25. c4 {[%clk 0:02:05]}  Qc3 {[%clk 0:00:42]} 26. Qxc3 {[%clk 0:01:33]}  Nxc3 {[%clk 0:00:41]} 27. Rb4 {[%clk 0:01:33]}  Kf8 {[%clk 0:00:17]} 28. cxb5 {[%clk 0:01:34]}  Nd5 {[%clk 0:00:18]} 29. Ra4 {[%clk 0:01:30]}  Ke7 {[%clk 0:00:17]} 30. Ra7+ {[%clk 0:01:29]}  Kf6 {[%clk 0:00:17]} 31. Kg2 {[%clk 0:01:18]}  g6 {[%clk 0:00:17]} 32. Kf3 {[%clk 0:01:18]}  h5 {[%clk 0:00:17]} 33. h4 {[%clk 0:01:17]}  Nc3 {[%clk 0:00:16]} 34. Ra5 {[%clk 0:01:16]}  Nd5 {[%clk 0:00:16]} 35. Ke2 {[%clk 0:01:12]}  Ke7 {[%clk 0:00:15]} 36. Ra7+ {[%clk 0:01:10]}  Kf6 {[%clk 0:00:14]} 37. Kd2 {[%clk 0:01:10]}  Nb4 {[%clk 0:00:12]} 38. Bc4 {[%clk 0:01:07]}  Rc8 {[%clk 0:00:10]} 39. Bb3 {[%clk 0:01:00]}  Rb8 {[%clk 0:00:09]} 40. Ra5 {[%clk 0:01:00]}  Rc8 {[%clk 0:00:06]} 41. Ra4 {[%clk 0:00:57]}  Nd5 {[%clk 0:00:05]} 42. Bxd5 {[%clk 0:00:57]}  exd5 {[%clk 0:00:05]} 43. b6 {[%clk 0:00:49]}  Rb8 {[%clk 0:00:04]} 44. Rb4 {[%clk 0:00:48]}  Ke6 {[%clk 0:00:04]} 45. b7 {[%clk 0:00:46]}  Kd6 {[%clk 0:00:02]} 46. Rb6+ {[%clk 0:00:42]}  Kc7 {[%clk 0:00:02]} 47. Rf6 {[%clk 0:00:43]}  Rf8 {[%clk 0:00:03]} 48. Ke3 {[%clk 0:00:21]}  Kxb7 {[%clk 0:00:03]} 49. Kf4 {[%clk 0:00:21]}  Kc7 {[%clk 0:00:02]} 50. Kg5 {[%clk 0:00:13]}  Kd7 {[%clk 0:00:03]} 51. Kh6 {[%clk 0:00:13]}  Ke7 {[%clk 0:00:03]} 52. Kg7 {[%clk 0:00:14]}  Ke8 {[%clk 0:00:02]} 53. f3 {[%clk 0:00:13]}  Ke7 {[%clk 0:00:02]} 54. g4 {[%clk 0:00:11]}  hxg4 {[%clk 0:00:02]} 55. fxg4 {[%clk 0:00:12]}  Rg8+ {[%clk 0:00:02]} 56. Kxg8 {[%clk 0:00:12]}  Kxf6 {[%clk 0:00:03]} 57. g5+ {[%clk 0:00:05]}  Ke7 {[%clk 0:00:02]} 58. Kg7 {[%clk 0:00:05]}  Ke8 {[%clk 0:00:03]} 59. Kf6 {[%clk 0:00:04]}  Kf8 {[%clk 0:00:03]} 60. Ke5 {[%clk 0:00:05]}  Ke7 {[%clk 0:00:03]} 61. Kxd5 {[%clk 0:00:05]}  Kd7 {[%clk 0:00:04]} 62. Ke5 {[%clk 0:00:06]}  Ke7 {[%clk 0:00:04]} 63. d5 {[%clk 0:00:07]}  Kd7 {[%clk 0:00:05]} 64. Kf6 {[%clk 0:00:08]}  Kd6 {[%clk 0:00:05]} 65. Kxf7 {[%clk 0:00:08]}  Kxd5 {[%clk 0:00:06]} 66. Kxg6 {[%clk 0:00:09]}  Ke5 {[%clk 0:00:06]} 67. h5 {[%clk 0:00:10]}  Ke6 {[%clk 0:00:07]} 68. h6 {[%clk 0:00:11]}  Ke7 {[%clk 0:00:08]} 69. Kg7 {[%clk 0:00:12]}  Ke6 {[%clk 0:00:09]} 70. g6 {[%clk 0:00:13]}  Kd6 {[%clk 0:00:10]} 71. h7 {[%clk 0:00:13]}  Ke5 {[%clk 0:00:11]} 72. h8=Q {[%clk 0:00:14]}  Ke6 {[%clk 0:00:12]} 73. Qf8 {[%clk 0:00:15]}  Ke5 {[%clk 0:00:12]} 74. Kh7 {[%clk 0:00:16]}  Ke6 {[%clk 0:00:13]} 75. g7 {[%clk 0:00:17]}  Kd5 {[%clk 0:00:13]} 76. g8=Q+ {[%clk 0:00:18]}  Kc6 {[%clk 0:00:14]} 77. Qff7 {[%clk 0:00:18]}  Kb5 {[%clk 0:00:15]} 78. Qgg6 {[%clk 0:00:19]}  Kb4 {[%clk 0:00:14]} 79. Qff5 {[%clk 0:00:20]}  Kc3 {[%clk 0:00:15]} 80. Qgg4 {[%clk 0:00:20]}  Kd2 {[%clk 0:00:16]} 81. Qff3 {[%clk 0:00:21]}  Ke1 {[%clk 0:00:17]} 82. Qgg3+ {[%clk 0:00:21]}  Kd2 {[%clk 0:00:17]} 83. Qff2+ {[%clk 0:00:22]}  Kd1 {[%clk 0:00:16]} 84. Qgg1# {[%clk 0:00:23]} 1-0


[Site "https://www.chess.com"]

[Event "Titled Tuesday Blitz February 28 Early 2023"]
[White "Kilic, Eray"]
[Black "Maghsoodloo, Parham"]
[WhiteFideId "44517173"]
[BlackFideId "12539929"]
[WhiteElo "2328"]
[BlackElo "2659"]
[Result "1-0"]
[Round "06"]
[TimeControl "180+2"]
[Date "2023.02.28"]
[WhiteClock "0:01:35"]
[BlackClock "0:01:49"]

1. e4 {[%clk 0:03:00]}  c5 {[%clk 0:02:57]} 2. Nf3 {[%clk 0:03:00]}  e6 {[%clk 0:02:56]} 3. d4 {[%clk 0:02:58]}  cxd4 {[%clk 0:02:56]} 4. Nxd4 {[%clk 0:02:59]}  Qc7 {[%clk 0:02:56]} 5. Nc3 {[%clk 0:02:59]}  Nc6 {[%clk 0:02:56]} 6. g3 {[%clk 0:02:58]}  Nf6 {[%clk 0:02:53]} 7. Bg2 {[%clk 0:02:58]}  Nxd4 {[%clk 0:02:52]} 8. Qxd4 {[%clk 0:02:58]}  Bc5 {[%clk 0:02:52]} 9. Bf4 {[%clk 0:02:45]}  Qb6 {[%clk 0:02:44]} 10. Qd2 {[%clk 0:02:46]}  Qa6 {[%clk 0:02:13]} 11. e5 {[%clk 0:02:09]}  Nh5 {[%clk 0:02:11]} 12. Be3 {[%clk 0:02:06]}  Bxe3 {[%clk 0:02:11]} 13. Qxe3 {[%clk 0:02:07]}  Qb6 {[%clk 0:02:03]} 14. Qd2 {[%clk 0:01:57]}  g6 {[%clk 0:01:55]} 15. g4 {[%clk 0:01:40]}  Ng7 {[%clk 0:01:54]} 16. O-O-O {[%clk 0:01:40]}  d5 {[%clk 0:01:51]} 17. exd6 {[%clk 0:01:37]}  f5 {[%clk 0:01:49]} 18. d7+ {[%clk 0:01:35]} 1-0


[Site "https://www.chess.com"]

[Event "Titled Tuesday Blitz February 28 Early 2023"]
[White "Milikow, Yoav"]
[Black "Matlakov, Maxim"]
[WhiteFideId "2822237"]
[BlackFideId "4168003"]
[WhiteElo "2410"]
[BlackElo "2666"]
[Result "0-1"]
[Round "06"]
[TimeControl "180+2"]
[Date "2023.02.28"]
[WhiteClock "0:00:57"]
[BlackClock "0:02:08"]

1. d4 {[%clk 0:02:56]}  d5 {[%clk 0:03:00]} 2. c4 {[%clk 0:02:54]}  c6 {[%clk 0:03:00]} 3. Nf3 {[%clk 0:02:54]}  Nf6 {[%clk 0:03:00]} 4. g3 {[%clk 0:02:54]}  Bf5 {[%clk 0:02:57]} 5. Nc3 {[%clk 0:02:54]}  e6 {[%clk 0:02:57]} 6. Nh4 {[%clk 0:02:53]}  Be4 {[%clk 0:02:57]} 7. f3 {[%clk 0:02:53]}  Bg6 {[%clk 0:02:57]} 8. Qb3 {[%clk 0:02:48]}  Qb6 {[%clk 0:02:57]} 9. c5 {[%clk 0:02:47]}  Qxb3 {[%clk 0:02:55]} 10. axb3 {[%clk 0:02:47]}  Na6 {[%clk 0:02:56]} 11. e3 {[%clk 0:02:40]}  Nb4 {[%clk 0:02:48]} 12. Ra4 {[%clk 0:02:33]}  a5 {[%clk 0:02:48]} 13. Nxg6 {[%clk 0:02:30]}  hxg6 {[%clk 0:02:49]} 14. Bd2 {[%clk 0:02:24]}  Nd7 {[%clk 0:02:46]} 15. Kd1 {[%clk 0:02:02]}  b6 {[%clk 0:02:43]} 16. cxb6 {[%clk 0:01:52]}  Nxb6 {[%clk 0:02:44]} 17. Ra1 {[%clk 0:01:52]}  Bd6 {[%clk 0:02:43]} 18. Bg2 {[%clk 0:01:16]}  Ke7 {[%clk 0:02:30]} 19. Ke2 {[%clk 0:01:15]}  g5 {[%clk 0:02:17]} 20. e4 {[%clk 0:01:15]}  f6 {[%clk 0:02:17]} 21. exd5 {[%clk 0:01:09]}  exd5 {[%clk 0:02:10]} 22. Rae1 {[%clk 0:01:00]}  Nc2 {[%clk 0:02:08]} 23. Ref1 {[%clk 0:00:57]}  Nxd4+ {[%clk 0:02:08]} 0-1


[Site "https://www.chess.com"]

[Event "Titled Tuesday Blitz February 28 Early 2023"]
[White "Costachi, Mihnea"]
[Black "Vokhidov, Shamsiddin"]
[WhiteFideId "1217518"]
[BlackFideId "14204223"]
[WhiteElo "2456"]
[BlackElo "2570"]
[Result "0-1"]
[Round "06"]
[TimeControl "180+2"]
[Date "2023.02.28"]
[WhiteClock "0:00:09"]
[BlackClock "0:01:56"]

1. d4 {[%clk 0:03:00]}  Nf6 {[%clk 0:03:00]} 2. c4 {[%clk 0:02:59]}  e6 {[%clk 0:03:01]} 3. Nf3 {[%clk 0:03:00]}  d5 {[%clk 0:03:01]} 4. Nc3 {[%clk 0:03:00]}  Bb4 {[%clk 0:03:01]} 5. cxd5 {[%clk 0:03:00]}  exd5 {[%clk 0:03:02]} 6. Bg5 {[%clk 0:03:00]}  Nbd7 {[%clk 0:03:01]} 7. e3 {[%clk 0:03:00]}  c5 {[%clk 0:03:01]} 8. Bd3 {[%clk 0:02:59]}  Qa5 {[%clk 0:03:01]} 9. Qc2 {[%clk 0:02:56]}  c4 {[%clk 0:03:00]} 10. Bf5 {[%clk 0:02:55]}  O-O {[%clk 0:03:01]} 11. O-O {[%clk 0:02:54]}  Re8 {[%clk 0:03:01]} 12. a3 {[%clk 0:02:45]}  Bxc3 {[%clk 0:02:58]} 13. bxc3 {[%clk 0:02:46]}  Ne4 {[%clk 0:02:57]} 14. Rfc1 {[%clk 0:02:37]}  Nb6 {[%clk 0:02:57]} 15. Bxc8 {[%clk 0:02:28]}  Raxc8 {[%clk 0:02:57]} 16. a4 {[%clk 0:02:29]}  a6 {[%clk 0:02:44]} 17. Bf4 {[%clk 0:02:29]}  f6 {[%clk 0:02:42]} 18. Nd2 {[%clk 0:02:19]}  Nxd2 {[%clk 0:02:42]} 19. Qxd2 {[%clk 0:02:20]}  Nxa4 {[%clk 0:02:42]} 20. f3 {[%clk 0:02:09]}  b5 {[%clk 0:02:42]} 21. Qc2 {[%clk 0:02:06]}  g5 {[%clk 0:02:37]} 22. Bd6 {[%clk 0:02:02]}  Qb6 {[%clk 0:02:36]} 23. Rxa4 {[%clk 0:01:38]}  bxa4 {[%clk 0:02:35]} 24. Bc5 {[%clk 0:01:36]}  Rxc5 {[%clk 0:02:28]} 25. dxc5 {[%clk 0:01:37]}  Qxc5 {[%clk 0:02:29]} 26. h3 {[%clk 0:01:30]}  Qxe3+ {[%clk 0:02:26]} 27. Kh1 {[%clk 0:01:31]}  a3 {[%clk 0:02:26]} 28. Ra1 {[%clk 0:01:27]}  Qe2 {[%clk 0:02:11]} 29. Qf5 {[%clk 0:01:19]}  Qe5 {[%clk 0:02:09]} 30. Qd7 {[%clk 0:01:20]}  Rb8 {[%clk 0:02:07]} 31. f4 {[%clk 0:01:01]}  Qxc3 {[%clk 0:02:03]} 32. Qxd5+ {[%clk 0:00:55]}  Kh8 {[%clk 0:02:03]} 33. Rd1 {[%clk 0:00:51]}  a2 {[%clk 0:01:58]} 34. Qd6 {[%clk 0:00:33]}  Re8 {[%clk 0:01:58]} 35. Qxa6 {[%clk 0:00:15]}  Re1+ {[%clk 0:01:56]} 36. Rxe1 {[%clk 0:00:15]}  Qxe1+ {[%clk 0:01:55]} 37. Kh2 {[%clk 0:00:16]}  a1=Q {[%clk 0:01:55]} 38. Qc8+ {[%clk 0:00:16]}  Kg7 {[%clk 0:01:55]} 39. Qd7+ {[%clk 0:00:13]}  Kf8 {[%clk 0:01:56]} 40. Qd8+ {[%clk 0:00:09]}  Qe8 {[%clk 0:01:55]} 41. Qxf6+ {[%clk 0:00:09]}  Qxf6 {[%clk 0:01:56]} 0-1


[Site "https://www.chess.com"]

[Event "Titled Tuesday Blitz February 28 Early 2023"]
[White "Fedoseev, Vladimir"]
[Black "Manukyan, Sargis V."]
[WhiteFideId "24130737"]
[BlackFideId "13303465"]
[WhiteElo "2752"]
[BlackElo "2236"]
[Result "1-0"]
[Round "06"]
[TimeControl "180+2"]
[Date "2023.02.28"]
[WhiteClock "0:00:13"]
[BlackClock "0:00:14"]

1. e4 {[%clk 0:02:11]}  e6 {[%clk 0:02:58]} 2. d4 {[%clk 0:02:10]}  d5 {[%clk 0:02:57]} 3. Nc3 {[%clk 0:02:10]}  Bb4 {[%clk 0:02:57]} 4. e5 {[%clk 0:02:10]}  c5 {[%clk 0:02:57]} 5. a3 {[%clk 0:02:10]}  Bxc3+ {[%clk 0:02:57]} 6. bxc3 {[%clk 0:02:11]}  Ne7 {[%clk 0:02:58]} 7. Qg4 {[%clk 0:02:10]}  O-O {[%clk 0:02:58]} 8. Bd3 {[%clk 0:02:08]}  Nbc6 {[%clk 0:02:58]} 9. Nf3 {[%clk 0:02:06]}  f5 {[%clk 0:02:56]} 10. exf6 {[%clk 0:02:02]}  Rxf6 {[%clk 0:02:57]} 11. Qh5 {[%clk 0:02:02]}  h6 {[%clk 0:02:56]} 12. O-O {[%clk 0:01:56]}  c4 {[%clk 0:02:50]} 13. Be2 {[%clk 0:01:55]}  Bd7 {[%clk 0:02:49]} 14. Re1 {[%clk 0:01:46]}  Be8 {[%clk 0:02:45]} 15. Qh3 {[%clk 0:01:46]}  Bg6 {[%clk 0:02:42]} 16. Bd1 {[%clk 0:01:27]}  Nf5 {[%clk 0:02:24]} 17. g4 {[%clk 0:01:24]}  Nd6 {[%clk 0:02:23]} 18. g5 {[%clk 0:01:24]}  Bf5 {[%clk 0:02:23]} 19. Qg2 {[%clk 0:01:21]}  hxg5 {[%clk 0:02:02]} 20. Bxg5 {[%clk 0:01:18]}  Ne4 {[%clk 0:02:02]} 21. Bxf6 {[%clk 0:01:15]}  Qxf6 {[%clk 0:02:03]} 22. Re3 {[%clk 0:01:15]}  Rf8 {[%clk 0:01:58]} 23. h4 {[%clk 0:01:02]}  Qh6 {[%clk 0:01:41]} 24. Ng5 {[%clk 0:00:35]}  Qxh4 {[%clk 0:01:37]} 25. Nxe4 {[%clk 0:00:34]}  Bxe4 {[%clk 0:01:26]} 26. Bf3 {[%clk 0:00:34]}  Bf5 {[%clk 0:00:50]} 27. Qg3 {[%clk 0:00:34]}  Qe7 {[%clk 0:00:38]} 28. Bxd5 {[%clk 0:00:23]}  Rf6 {[%clk 0:00:36]} 29. Kf1 {[%clk 0:00:23]}  Rg6 {[%clk 0:00:33]} 30. Qf3 {[%clk 0:00:23]}  Qg5 {[%clk 0:00:29]} 31. Bxc4 {[%clk 0:00:13]}  Qg1+ {[%clk 0:00:26]} 32. Ke2 {[%clk 0:00:14]}  Qxa1 {[%clk 0:00:27]} 33. Qxf5 {[%clk 0:00:14]}  Rf6 {[%clk 0:00:21]} 34. Bxe6+ {[%clk 0:00:15]}  Kf8 {[%clk 0:00:20]} 35. Qc5+ {[%clk 0:00:15]}  Ne7 {[%clk 0:00:15]} 36. Bb3 {[%clk 0:00:14]}  Rf7 {[%clk 0:00:14]} 37. Bxf7 {[%clk 0:00:13]} 1-0


[Site "https://www.chess.com"]

[Event "Titled Tuesday Blitz February 28 Early 2023"]
[White "Babazada, Khazar"]
[Black "Subelj, Jan"]
[WhiteFideId "13413554"]
[BlackFideId "14618583"]
[WhiteElo "2359"]
[BlackElo "2480"]
[Result "1-0"]
[Round "06"]
[TimeControl "180+2"]
[Date "2023.02.28"]
[WhiteClock "0:00:17"]
[BlackClock "0:00:28"]

1. Nf3 {[%clk 0:02:04]}  Nf6 {[%clk 0:02:54]} 2. g3 {[%clk 0:02:04]}  b6 {[%clk 0:02:52]} 3. Bg2 {[%clk 0:02:05]}  Bb7 {[%clk 0:02:53]} 4. O-O {[%clk 0:02:06]}  g6 {[%clk 0:02:52]} 5. d3 {[%clk 0:02:06]}  Bg7 {[%clk 0:02:52]} 6. e4 {[%clk 0:02:07]}  O-O {[%clk 0:02:52]} 7. Nc3 {[%clk 0:02:06]}  c5 {[%clk 0:02:49]} 8. h4 {[%clk 0:02:04]}  d6 {[%clk 0:02:46]} 9. Bd2 {[%clk 0:02:03]}  Nc6 {[%clk 0:02:45]} 10. Qc1 {[%clk 0:02:03]}  e5 {[%clk 0:02:45]} 11. Bh6 {[%clk 0:02:03]}  Ng4 {[%clk 0:02:41]} 12. Bxg7 {[%clk 0:01:54]}  Kxg7 {[%clk 0:02:42]} 13. Nd5 {[%clk 0:01:53]}  Nf6 {[%clk 0:02:35]} 14. Ne3 {[%clk 0:01:51]}  h5 {[%clk 0:02:33]} 15. c3 {[%clk 0:01:50]}  Re8 {[%clk 0:02:29]} 16. Ng5 {[%clk 0:01:49]}  Ng4 {[%clk 0:02:23]} 17. Nh3 {[%clk 0:01:03]}  Qe7 {[%clk 0:01:42]} 18. Nd5 {[%clk 0:01:01]}  Qd8 {[%clk 0:01:38]} 19. f4 {[%clk 0:01:02]}  Ne7 {[%clk 0:01:36]} 20. Nxe7 {[%clk 0:01:01]}  Qxe7 {[%clk 0:01:36]} 21. f5 {[%clk 0:01:01]}  f6 {[%clk 0:01:33]} 22. fxg6 {[%clk 0:01:01]}  Kxg6 {[%clk 0:01:33]} 23. Bf3 {[%clk 0:01:00]}  Bc8 {[%clk 0:01:32]} 24. Bxg4 {[%clk 0:00:52]}  Bxg4 {[%clk 0:01:33]} 25. Nf2 {[%clk 0:00:49]}  Be6 {[%clk 0:01:32]} 26. Nd1 {[%clk 0:00:47]}  Rg8 {[%clk 0:01:29]} 27. Ne3 {[%clk 0:00:47]}  Kf7 {[%clk 0:01:29]} 28. Kh2 {[%clk 0:00:46]}  Rg6 {[%clk 0:01:29]} 29. Qd1 {[%clk 0:00:45]}  Rh8 {[%clk 0:01:28]} 30. Qe2 {[%clk 0:00:44]}  Qd7 {[%clk 0:01:28]} 31. Nf5 {[%clk 0:00:41]}  d5 {[%clk 0:01:21]} 32. Rf2 {[%clk 0:00:39]}  c4 {[%clk 0:01:05]} 33. dxc4 {[%clk 0:00:36]}  dxe4 {[%clk 0:01:04]} 34. Raf1 {[%clk 0:00:35]}  Qd3 {[%clk 0:01:01]} 35. Qe1 {[%clk 0:00:20]}  Bxf5 {[%clk 0:00:46]} 36. Rxf5 {[%clk 0:00:21]}  Ke6 {[%clk 0:00:45]} 37. Qf2 {[%clk 0:00:18]}  Rf8 {[%clk 0:00:43]} 38. Rxh5 {[%clk 0:00:18]}  e3 {[%clk 0:00:42]} 39. Qf3 {[%clk 0:00:19]}  Rfg8 {[%clk 0:00:39]} 40. Rh7 {[%clk 0:00:17]}  Rxg3 {[%clk 0:00:28]} 41. Qxf6# {[%clk 0:00:17]} 1-0


[Site "https://www.chess.com"]

[Event "Titled Tuesday Blitz February 28 Early 2023"]
[White "Sanal, Vahap"]
[Black "Rostomyan, Mikayel"]
[WhiteFideId "6300545"]
[BlackFideId "13313754"]
[WhiteElo "2605"]
[BlackElo "2009"]
[Result "0-1"]
[Round "06"]
[TimeControl "180+2"]
[Date "2023.02.28"]
[WhiteClock "0:00:09"]
[BlackClock "0:00:09"]

1. Nf3 {[%clk 0:03:00]}  d5 {[%clk 0:02:59]} 2. b3 {[%clk 0:02:59]}  Nf6 {[%clk 0:02:54]} 3. Bb2 {[%clk 0:02:59]}  Bf5 {[%clk 0:02:55]} 4. g3 {[%clk 0:02:59]}  e6 {[%clk 0:02:55]} 5. Bg2 {[%clk 0:02:59]}  h6 {[%clk 0:02:54]} 6. O-O {[%clk 0:03:00]}  Be7 {[%clk 0:02:54]} 7. d3 {[%clk 0:03:00]}  c6 {[%clk 0:02:54]} 8. Nbd2 {[%clk 0:03:01]}  O-O {[%clk 0:02:55]} 9. Re1 {[%clk 0:03:01]}  Bh7 {[%clk 0:02:55]} 10. e4 {[%clk 0:03:02]}  Nbd7 {[%clk 0:02:52]} 11. Qe2 {[%clk 0:03:02]}  a5 {[%clk 0:02:40]} 12. a4 {[%clk 0:03:01]}  dxe4 {[%clk 0:02:37]} 13. dxe4 {[%clk 0:03:01]}  Nc5 {[%clk 0:02:36]} 14. Rad1 {[%clk 0:03:00]}  Qc7 {[%clk 0:02:34]} 15. e5 {[%clk 0:02:58]}  Nd5 {[%clk 0:02:26]} 16. Nc4 {[%clk 0:02:57]}  Nb4 {[%clk 0:02:01]} 17. Rd2 {[%clk 0:02:50]}  Ne4 {[%clk 0:01:50]} 18. Rdd1 {[%clk 0:02:46]}  Nc5 {[%clk 0:01:50]} 19. Nd4 {[%clk 0:02:40]}  Rad8 {[%clk 0:01:36]} 20. Rd2 {[%clk 0:02:40]}  Rd7 {[%clk 0:01:17]} 21. Nd6 {[%clk 0:02:32]}  Bxd6 {[%clk 0:01:12]} 22. exd6 {[%clk 0:02:33]}  Rxd6 {[%clk 0:01:11]} 23. Qe5 {[%clk 0:02:22]}  Nd7 {[%clk 0:00:49]} 24. Qxg7+ {[%clk 0:02:14]}  Kxg7 {[%clk 0:00:47]} 25. Nf5+ {[%clk 0:02:15]}  Kg6 {[%clk 0:00:38]} 26. Ne7+ {[%clk 0:02:14]}  Kg5 {[%clk 0:00:33]} 27. h4+ {[%clk 0:01:52]}  Kg4 {[%clk 0:00:29]} 28. Re3 {[%clk 0:01:51]}  Rxd2 {[%clk 0:00:22]} 29. Bf3+ {[%clk 0:01:45]}  Kh3 {[%clk 0:00:22]} 30. Bg2+ {[%clk 0:01:45]}  Kg4 {[%clk 0:00:22]} 31. Bc1 {[%clk 0:01:33]}  Rd1+ {[%clk 0:00:15]} 32. Kh2 {[%clk 0:01:33]}  Qf4 {[%clk 0:00:06]} 33. Bh3+ {[%clk 0:00:27]}  Kh5 {[%clk 0:00:05]} 34. gxf4 {[%clk 0:00:28]}  Rxc1 {[%clk 0:00:05]} 35. Rg3 {[%clk 0:00:28]}  Bf5 {[%clk 0:00:03]} 36. Bxf5 {[%clk 0:00:23]}  exf5 {[%clk 0:00:03]} 37. Nxf5 {[%clk 0:00:24]}  Nf6 {[%clk 0:00:02]} 38. Kh3 {[%clk 0:00:23]}  Rg8 {[%clk 0:00:01]} 39. Ng7+ {[%clk 0:00:03]}  Rxg7 {[%clk 0:00:01]} 40. Rxg7 {[%clk 0:00:04]}  Rh1+ {[%clk 0:00:01]} 41. Kg2 {[%clk 0:00:04]}  Rc1 {[%clk 0:00:01]} 42. Rxf7 {[%clk 0:00:05]}  Ng4 {[%clk 0:00:02]} 43. Rf5+ {[%clk 0:00:05]}  Kxh4 {[%clk 0:00:03]} 44. Rxa5 {[%clk 0:00:06]}  Rxc2 {[%clk 0:00:04]} 45. Kf3 {[%clk 0:00:06]}  Nd3 {[%clk 0:00:05]} 46. Ke4 {[%clk 0:00:07]}  Ndxf2+ {[%clk 0:00:05]} 47. Kf5 {[%clk 0:00:08]}  Rd2 {[%clk 0:00:04]} 48. Kg6 {[%clk 0:00:08]}  Rd6+ {[%clk 0:00:05]} 49. Kh7 {[%clk 0:00:08]}  Rd5 {[%clk 0:00:06]} 50. Ra7 {[%clk 0:00:08]}  h5 {[%clk 0:00:06]} 51. Rxb7 {[%clk 0:00:09]}  Kg3 {[%clk 0:00:07]} 52. b4 {[%clk 0:00:09]}  h4 {[%clk 0:00:07]} 53. Rc7 {[%clk 0:00:09]}  Rd4 {[%clk 0:00:07]} 54. Rxc6 {[%clk 0:00:09]}  Rxb4 {[%clk 0:00:08]} 55. a5 {[%clk 0:00:09]}  h3 {[%clk 0:00:08]} 56. a6 {[%clk 0:00:10]}  Ra4 {[%clk 0:00:09]} 57. f5 {[%clk 0:00:09]}  h2 {[%clk 0:00:09]} 0-1


[Site "https://www.chess.com"]